Workbook

Sheet Instructions
A1: Instructions
A3: Fill out the "Information" form and apply the units of measure.
A23: Enter the Machine Settings and Criteria/Tolerance on the "Report" worksheet. All settings
A24: can be adjusted pre/post opperation.
A44: Open Accu-Gold 2 and activate "Companion Mode"
A58: If the software is already open you can just click the "Toggle" button
A75: Accu-Gold 2 will automatically re-size the template and application so they can be viewed
A76: simultaneously.
A78: Select the unit of measure. Units can be adjusted pre/post operation.
A99: On Accu-Gold 2 adjust the "Direct Link to Excel" options to "Nordic Format" and check the
A100: box for "Auto Send"
A109: You can now select the first output cell on the "Data" sheet
A110: Reproducibility | C110: "D3"
A111: Accuracy | C111: "D14"
A112: Linearity | C112: "D25"
A114: All test sections can be used in any order of choice by selecting
A115: the appropriate start cell.
A117: The test data can be deleted from each section independently by clicking
A118: the button to the right of the section.
A138: After the cell has been selected go to the Accu-Gold 2 "Direct Link to Excel" options and
A139: click "Get Cell". The selected cell and template name will show in the same field.
A150: You can now click the "Start" button and begin taking measurement.
A163: Notes:
A165: When you have competed the inspection it is recommended you save as a PDF instead of
A166: saving over the original template.
A168: You can capture data a review the "Data" or "Report" sheet as needed.
A170: Stopping Accu-Gold 2 to "Get Cell" is not required
A172: "Direct Link to Excel" will work with both USB and Wifi connectivity
A174: "Data" output can be entered manually
A176: For assistance contact cust_sup@radcal.com | I176: 2017-05-09

Sheet Information
L1: mA | M1: mR/ | N1: cm
L2: mAs | M2: mGy/ | N2: in
C6: User Information
C8: Facility | D8: Confidential
C10: Location | D10: Top Secret
C12: Room | D12: Somewhere on the 3rd floor
C14: Machine | D14: Pegasus 3000
C16: Technician | D16: John Smith
C18: Date | D18: 5/4/1983
C20: Settings
C22: SDD: | D22: 12
C24: SDD Units: | D24: cm
C26: Dose Units: | D26: mR/
C28: Time Generator: | D28: mA

Sheet Report
A1: Radiographic Reproducibility
B3: Facility: | C3: =Information!D8 -> Confidential
B4: Location: | C4: =Information!D10 -> Top Secret
B5: Room: | C5: =Information!D12 -> Somewhere on the 3rd floor
B6: Machine: | C6: =Information!D14 -> Pegasus 3000
B7: Technician: | C7: =Information!D16 -> John Smith
B8: Date: | C8: =Information!D18 -> 5/4/1983
B10: Machine Settings | E10: Measurement Data
B11: kV | C11: 80 | D11: Exp. | E11: kVp | F11: ms | G11: =Information!D26 -> mR/
B12: =Information!D28 -> mA | C12: 20 | D12: 1 | E12: =IF(Data!D3="","",Data!D3) -> 79.3 | F12: =IF(Data!J3="","",Data!J3)*1000 -> 100 | G12: =IF(Data!F3="","",Data!F3) -> 189.07
B13: Focus | C13: Small | D13: 2 | E13: =IF(Data!D4="","",Data!D4) -> 78 | F13: =IF(Data!J4="","",Data!J4)*1000 -> 100 | G13: =IF(Data!F4="","",Data!F4) -> 189.99
B14: SDD | C14: =Information!D22 -> 12 | D14: 3 | E14: =IF(Data!D5="","",Data!D5) -> 77.2 | F14: =IF(Data!J5="","",Data!J5)*1000 -> 100 | G14: =IF(Data!F5="","",Data!F5) -> 187.56
D15: 4 | E15: =IF(Data!D6="","",Data!D6) -> 77.8 | F15: =IF(Data!J6="","",Data!J6)*1000 -> 100 | G15: =IF(Data!F6="","",Data!F6) -> 189.99
D16: 5 | E16: =IF(Data!D7="","",Data!D7) -> 78.5 | F16: =IF(Data!J7="","",Data!J7)*1000 -> 100 | G16: =IF(Data!F7="","",Data!F7) -> 189.07
D17: 6 | E17: =IF(Data!D8="","",Data!D8) -> 79.3 | F17: =IF(Data!J8="","",Data!J8)*1000 -> 100 | G17: =IF(Data!F8="","",Data!F8) -> 189.99
D18: 7 | E18: =IF(Data!D9="","",Data!D9) -> 79.6 | F18: =IF(Data!J9="","",Data!J9)*1000 -> 100 | G18: =IF(Data!F9="","",Data!F9) -> 187.56
D19: 8 | E19: =IF(Data!D10="","",Data!D10) -> 79.1 | F19: =IF(Data!J10="","",Data!J10)*1000 -> 100 | G19: =IF(Data!F10="","",Data!F10) -> 189.99
D20: 9 | E20: =IF(Data!D11="","",Data!D11) -> 79.5 | F20: =IF(Data!J11="","",Data!J11)*1000 -> 100 | G20: =IF(Data!F11="","",Data!F11) -> 189.07
D21: 10 | E21: =IF(Data!D12="","",Data!D12) -> 80.5 | F21: =IF(Data!J12="","",Data!J12)*1000 -> 100 | G21: =IF(Data!F12="","",Data!F12) -> 187.56
D23: Average | E23: =IF(ISNUMBER(E12), AVERAGE(E12:E21), "") -> 78.88 | F23: =IF(ISNUMBER(F12), AVERAGE(F12:F21), "") -> 100 | G23: =IF(ISNUMBER(G12), AVERAGE(G12:G21), "") -> 188.985
D24: Coefficient of Variation | E24: =IF(AND(ISNUMBER(E12),ISNUMBER(E13)), STDEV(E12:E21)/AVERAGE(E12:E21), "") -> 0.01256144777 | F24: =IF(AND(ISNUMBER(F12),ISNUMBER(F13)), STDEV(F12:F21)/AVERAGE(F12:F21), "") -> 0 | G24: =IF(AND(ISNUMBER(G12),ISNUMBER(G13)), STDEV(G12:G21)/AVERAGE(G12:G21), "") -> 0.005620338913
D26: Pass/Fail Criteria | E26: 0.05 | F26: 0.05 | G26: 0.05
D27: Pass/Fail Results | E27: =IF(ISNUMBER(E24), IF(E24>$E$26,"FAIL","PASS"), "") -> PASS | F27: =IF(ISNUMBER(F24), IF(F24>$F$26,"FAIL","PASS"), "") -> PASS | G27: =IF(ISNUMBER(G24), IF(G24>$G$26,"FAIL","PASS"), "") -> PASS
A31: Comments:
A33: Signature:
A34: Page 1 of 3
A35: Radiographic Accuracy
B37: ="Facility:" -> Facility: | C37: =Information!D8 -> Confidential
B38: ="Location:" -> Location: | C38: =Information!D10 -> Top Secret
B39: ="Room:" -> Room: | C39: =Information!D12 -> Somewhere on the 3rd floor | I39: 0
B40: ="Machine:" -> Machine: | C40: =Information!D14 -> Pegasus 3000 | I40: 0
B41: ="Technician:" -> Technician: | C41: =Information!D16 -> John Smith
B42: ="Date:" -> Date: | C42: =Information!D18 -> 5/4/1983 | N42: kVp | O42: Time
N43: 0.05 | O43: 0.05
A44: Machine Settings | F44: Measurement Data | J44: Error
A45: SDD: | B45: =Information!D22 -> 12 | C45: =Information!D24 -> cm | J45: Percent | K45: Absolute | L45: Percent | N45: Pass/Fail Results
A46: kVp | B46: =Information!D28 -> mA | C46: Focus | D46: ms | E46: Exp. | F46: kVp | G46: ms | H46: =Information!D26 -> mR/ | J46: kVp | K46: kV Error | L46: Time | N46: kVp | O46: time
A47: 50 | B47: 100 | C47: Small | D47: 100 | E47: 1 | F47: =IF(Data!D14="","",Data!D14) -> 52 | G47: =IF(Data!J14="","",Data!J14)*1000 -> 100 | H47: =IF(Data!F14="","",Data!F14) -> 189.07 | J47: =IF(ISNUMBER(A47+F47),(F47-A47)/A47,"") -> 0.04 | K47: =IF(ISNUMBER(A47),F47-A47,"") -> 2 | L47: =IF(Information!$M$3="mAs","N/A",IF(ISNUMBER(D47+G47),(G47-D47)/D47,"")) -> 0 | N47: =IF(ISNUMBER(A47+F47),IF(ABS(J47)>ABS($N$43),"FAIL","PASS"),"") -> PASS | O47: =IF(OR(L47="N/A", NOT(ISNUMBER(G47))),"",IF(ABS(L47)>ABS($O$43),"FAIL","PASS")) -> PASS
A48: 60 | B48: 100 | C48: Small | D48: 100 | E48: 2 | F48: =IF(Data!D15="","",Data!D15) -> 57.1 | G48: =IF(Data!J15="","",Data!J15)*1000 -> 100 | H48: =IF(Data!F15="","",Data!F15) -> 189.99 | J48: -0.04833333333 | K48: -2.9 | L48: =IF(Information!$M$3="mAs","N/A",IF(ISNUMBER(D48+G48),(G48-D48)/D48,"")) -> 0 | N48: =IF(ISNUMBER(A48+F48),IF(ABS(J48)>ABS($N$43),"FAIL","PASS"),"") -> PASS | O48: =IF(OR(L48="N/A", NOT(ISNUMBER(G48))),"",IF(ABS(L48)>ABS($O$43),"FAIL","PASS")) -> PASS
A49: 70 | B49: 250 | C49: Small | D49: 100 | E49: 3 | F49: =IF(Data!D16="","",Data!D16) -> 68.1 | G49: =IF(Data!J16="","",Data!J16)*1000 -> 100 | H49: =IF(Data!F16="","",Data!F16) -> 187.56 | J49: -0.02714285714 | K49: -1.9 | L49: =IF(Information!$M$3="mAs","N/A",IF(ISNUMBER(D49+G49),(G49-D49)/D49,"")) -> 0 | N49: PASS | O49: PASS
A50: 80 | B50: 250 | C50: Small | D50: 100 | E50: 4 | F50: =IF(Data!D17="","",Data!D17) -> 78.7 | G50: =IF(Data!J17="","",Data!J17)*1000 -> 100 | H50: =IF(Data!F17="","",Data!F17) -> 189.99 | J50: -0.01625 | K50: -1.3 | L50: =IF(Information!$M$3="mAs","N/A",IF(ISNUMBER(D50+G50),(G50-D50)/D50,"")) -> 0 | N50: PASS | O50: PASS
A51: 90 | B51: 250 | C51: Small | D51: 100 | E51: 5 | F51: =IF(Data!D18="","",Data!D18) -> 89.7 | G51: =IF(Data!J18="","",Data!J18)*1000 -> 100 | H51: =IF(Data!F18="","",Data!F18) -> 189.07 | J51: -0.003333333333 | K51: -0.3 | L51: =IF(Information!$M$3="mAs","N/A",IF(ISNUMBER(D51+G51),(G51-D51)/D51,"")) -> 0 | N51: PASS | O51: PASS
A52: 100 | B52: 250 | C52: Large | D52: 100 | E52: 6 | F52: =IF(Data!D19="","",Data!D19) -> 99.1 | G52: =IF(Data!J19="","",Data!J19)*1000 -> 100 | H52: =IF(Data!F19="","",Data!F19) -> 189.99 | J52: -0.009 | K52: -0.9 | L52: =IF(Information!$M$3="mAs","N/A",IF(ISNUMBER(D52+G52),(G52-D52)/D52,"")) -> 0 | N52: PASS | O52: PASS
A53: 110 | B53: 250 | C53: Large | D53: 100 | E53: 7 | F53: =IF(Data!D20="","",Data!D20) -> 109.8 | G53: =IF(Data!J20="","",Data!J20)*1000 -> 100 | H53: =IF(Data!F20="","",Data!F20) -> 187.56 | J53: -0.001818181818 | K53: -0.2 | L53: =IF(Information!$M$3="mAs","N/A",IF(ISNUMBER(D53+G53),(G53-D53)/D53,"")) -> 0 | N53: PASS | O53: PASS
A54: 120 | B54: 250 | C54: Large | D54: 100 | E54: 8 | F54: =IF(Data!D21="","",Data!D21) -> 119.9 | G54: =IF(Data!J21="","",Data!J21)*1000 -> 100 | H54: =IF(Data!F21="","",Data!F21) -> 189.99 | J54: -0.0008333333333 | K54: -0.1 | L54: =IF(Information!$M$3="mAs","N/A",IF(ISNUMBER(D54+G54),(G54-D54)/D54,"")) -> 0 | N54: PASS | O54: PASS
A55: 120 | B55: 250 | C55: Large | D55: 100 | E55: 9 | F55: =IF(Data!D22="","",Data!D22) -> 119.8 | G55: =IF(Data!J22="","",Data!J22)*1000 -> 100 | H55: =IF(Data!F22="","",Data!F22) -> 189.07 | J55: -0.001666666667 | K55: -0.2 | L55: =IF(Information!$M$3="mAs","N/A",IF(ISNUMBER(D55+G55),(G55-D55)/D55,"")) -> 0 | N55: PASS | O55: PASS
A56: 120 | B56: 250 | C56: Large | D56: 100 | E56: 10 | F56: =IF(Data!D23="","",Data!D23) -> 119.9 | G56: =IF(Data!J23="","",Data!J23)*1000 -> 100 | H56: =IF(Data!F23="","",Data!F23) -> 187.56 | J56: -0.0008333333333 | K56: -0.1 | L56: =IF(Information!$M$3="mAs","N/A",IF(ISNUMBER(D56+G56),(G56-D56)/D56,"")) -> 0 | N56: PASS | O56: PASS
K57: =IF(ISNUMBER(G57),(G57-B57)/B57,"") ->  | L57: =IF(ISNUMBER(G57),G57-B57,"") -> 
J60: 40 | K60: =N43 -> 0.05
J61: 140 | K61: =N43 -> 0.05
J62: 40 | K62: -0.05
J63: 140 | K63: -0.05
A70: Comments:
A72: Signature:
A73: Page 2 of 3
A74: Radiographic mAs Linearity
B76: Facility: | C76: =Information!D8 -> Confidential
B77: Location: | C77: =Information!D10 -> Top Secret
B78: Room: | C78: =Information!D12 -> Somewhere on the 3rd floor
B79: Machine: | C79: =Information!D14 -> Pegasus 3000
B80: Technician: | C80: =Information!D16 -> John Smith
B81: Date: | C81: =Information!D18 -> 5/4/1983
E83: Measurement Data | I83: Results | M83: Machine Settings
B84: =Information!D28 -> mA | C84: Focus | D84: Exp. | E84: kVp | F84: ms | G84: =Information!D26 -> mR/ | I84: =Information!D26 & Information!D28 -> mR/mA | J84: Deviation | K84: Pass/Fail | M84: kVp | N84: SDD
B85: 25 | C85: Small | D85: 1 | E85: =IF(Data!D25="","",Data!D25) -> 79.3 | F85: =IF(Data!J25="","",Data!J25)*1000 -> 2003.7 | G85: =IF(Data!F25="","",Data!F25) -> 275.92 | I85: =IF(Information!$D$28="mA",(IF(AND(ISNUMBER(G85), ISNUMBER(B85)),G85/(B85*(F85/1000)),"")),(IF(AND(ISNUMBER(G85),ISNUMBER(B85)),G85/B85,""))) -> 5.508209812 | J85: N/A | K85: - | M85: 80 | N85: =Information!D22 -> 12
B86: 50 | C86: Small | D86: 2 | E86: =IF(Data!D26="","",Data!D26) -> 78 | F86: =IF(Data!J26="","",Data!J26)*1000 -> 1000 | G86: =IF(Data!F26="","",Data!F26) -> 277.95 | I86: =IF(Information!$D$28="mA",(IF(AND(ISNUMBER(G86), ISNUMBER(B86)),G86/(B86*(F86/1000)),"")),(IF(AND(ISNUMBER(G86),ISNUMBER(B86)),G86/B86,""))) -> 5.559 | J86: =IF(ISNUMBER(I86),ABS((I86-I85)/(I86+I85))," ") -> 0.004589249595 | K86: =IF(ISNUMBER(J86),IF(ABS(J86)>ABS($M$88),"FAIL","PASS"),0) -> PASS
B87: 100 | C87: Small | D87: 3 | E87: =IF(Data!D27="","",Data!D27) -> 77.2 | F87: =IF(Data!J27="","",Data!J27)*1000 -> 500 | G87: =IF(Data!F27="","",Data!F27) -> 276.22 | I87: =IF(Information!$D$28="mA",(IF(AND(ISNUMBER(G87), ISNUMBER(B87)),G87/(B87*(F87/1000)),"")),(IF(AND(ISNUMBER(G87),ISNUMBER(B87)),G87/B87,""))) -> 5.5244 | J87: 0.003121785734 | K87: PASS | M87: Pass/Fail Criteria
B88: 160 | C88: Small | D88: 4 | E88: =IF(Data!D28="","",Data!D28) -> 77.8 | F88: =IF(Data!J28="","",Data!J28)*1000 -> 250 | G88: =IF(Data!F28="","",Data!F28) -> 225.36 | I88: =IF(Information!$D$28="mA",(IF(AND(ISNUMBER(G88), ISNUMBER(B88)),G88/(B88*(F88/1000)),"")),(IF(AND(ISNUMBER(G88),ISNUMBER(B88)),G88/B88,""))) -> 5.634 | J88: =IF(ISNUMBER(I88),ABS((I88-I87)/(I88+I87))," ") -> 0.009822196731 | K88: PASS | M88: 0.05
B89: 250 | C89: Large | D89: 5 | E89: =IF(Data!D29="","",Data!D29) -> 78.5 | F89: =IF(Data!J29="","",Data!J29)*1000 -> 100 | G89: =IF(Data!F29="","",Data!F29) -> 142.6 | I89: =IF(Information!$D$28="mA",(IF(AND(ISNUMBER(G89), ISNUMBER(B89)),G89/(B89*(F89/1000)),"")),(IF(AND(ISNUMBER(G89),ISNUMBER(B89)),G89/B89,""))) -> 5.704 | J89: =IF(ISNUMBER(I89),ABS((I89-I88)/(I89+I88))," ") -> 0.006173928382 | K89: PASS
B90: 320 | C90: Large | D90: 6 | E90: =IF(Data!D30="","",Data!D30) -> 79.3 | F90: =IF(Data!J30="","",Data!J30)*1000 -> 100 | G90: =IF(Data!F30="","",Data!F30) -> 189.07 | I90: =IF(Information!$D$28="mA",(IF(AND(ISNUMBER(G90), ISNUMBER(B90)),G90/(B90*(F90/1000)),"")),(IF(AND(ISNUMBER(G90),ISNUMBER(B90)),G90/B90,""))) -> 5.9084375 | J90: 0.01760504631 | K90: PASS
B91: 320 | C91: Large | D91: 7 | E91: =IF(Data!D31="","",Data!D31) -> 79.6 | F91: =IF(Data!J31="","",Data!J31)*1000 -> 100 | G91: =IF(Data!F31="","",Data!F31) -> 189.99 | I91: =IF(Information!$D$28="mA",(IF(AND(ISNUMBER(G91), ISNUMBER(B91)),G91/(B91*(F91/1000)),"")),(IF(AND(ISNUMBER(G91),ISNUMBER(B91)),G91/B91,""))) -> 5.9371875 | J91: 0.002427056403 | K91: PASS
B92: 320 | C92: Large | D92: 8 | E92: =IF(Data!D32="","",Data!D32) -> 79.1 | F92: =IF(Data!J32="","",Data!J32)*1000 -> 100 | G92: =IF(Data!F32="","",Data!F32) -> 187.56 | I92: =IF(Information!$D$28="mA",(IF(AND(ISNUMBER(G92), ISNUMBER(B92)),G92/(B92*(F92/1000)),"")),(IF(AND(ISNUMBER(G92),ISNUMBER(B92)),G92/B92,""))) -> 5.86125 | J92: 0.006436233611 | K92: PASS
B93: 320 | C93: Large | D93: 9 | E93: =IF(Data!D33="","",Data!D33) -> 79.3 | F93: =IF(Data!J33="","",Data!J33)*1000 -> 100 | G93: =IF(Data!F33="","",Data!F33) -> 189.7 | I93: =IF(Information!$D$28="mA",(IF(AND(ISNUMBER(G93), ISNUMBER(B93)),G93/(B93*(F93/1000)),"")),(IF(AND(ISNUMBER(G93),ISNUMBER(B93)),G93/B93,""))) -> 5.928125 | J93: 0.005672480517 | K93: PASS
J94: =IF(ISNUMBER(I94),ABS((I94-I93)/(I94+I93))," ") ->  | K94: =IF(ISNUMBER(J94),IF(ABS(J94)>ABS($J$11),"FAIL","PASS"),0) -> 0
J95: =IF(ISNUMBER(I95),ABS((I95-I94)/(I95+I94))," ") ->  | K95: 0
K96: 0
I97: =IF(ISNUMBER(#REF!),#REF!/(#REF!*#REF!),"") ->  | J97: =IF(ISNUMBER(I97),ABS((I97-I96)/(I97+I96))," ") -> 
A111: Comments:
A113: Signature:
A114: Page 3 of 3

Sheet Sample Data (hidden)
A1: 79.3 | B1: kV | C1: 189.07 | D1: mR | E1: 1880.97 | F1: mR/Sec | G1: 101.274 | H1: ms | I1: 1 | J1: Pulses | Q1: 2 | R1: mm-Al
A2: 78 | B2: kV | C2: 189.99 | D2: mR | E2: 1891.05 | F2: mR/Sec | G2: 101.35 | H2: ms | I2: 1 | J2: Pulses | Q2: 2.2 | R2: mm-Al
A3: 77.2 | B3: kV | C3: 187.56 | D3: mR | E3: 1868.85 | F3: mR/Sec | G3: 100.85 | H3: ms | I3: 1 | J3: Pulses | Q3: 2.7 | R3: mm-Al
A4: 77.8 | B4: kV | C4: 189.99 | D4: mR | E4: 1885.49 | F4: mR/Sec | G4: 101.25 | H4: ms | I4: 1 | J4: Pulses | Q4: 3 | R4: mm-Al
A5: 78.5 | B5: kV | C5: 189.07 | D5: mR | E5: 1880.97 | F5: mR/Sec | G5: 101.1 | H5: ms | I5: 1 | J5: Pulses | Q5: 3.4 | R5: mm-Al
A6: 79.3 | B6: kV | C6: 189.99 | D6: mR | E6: 1891.05 | F6: mR/Sec | G6: 100.659 | H6: ms | I6: 1 | J6: Pulses | Q6: 3.7 | R6: mm-Al
A7: 79.6 | B7: kV | C7: 187.56 | D7: mR | E7: 1868.85 | F7: mR/Sec | G7: 101.683 | H7: ms | I7: 1 | J7: Pulses | Q7: 4.1 | R7: mm-Al
A8: 79.1 | B8: kV | C8: 189.99 | D8: mR | E8: 1885.49 | F8: mR/Sec | G8: 101.581 | H8: ms | I8: 1 | J8: Pulses | Q8: 4.5 | R8: mm-Al
A9: 79.5 | B9: kV | C9: 189.07 | D9: mR | E9: 1880.97 | F9: mR/Sec | G9: 101.581 | H9: ms | I9: 1 | J9: Pulses | Q9: 2 | R9: mm-Al
A10: 80.5 | B10: kV | C10: 187.56 | D10: mR | E10: 1891.05 | F10: mR/Sec | G10: 100.85 | H10: ms | I10: 1 | J10: Pulses | Q10: 2.2 | R10: mm-Al
A12: 52 | B12: kV | C12: 189.07 | D12: mR | E12: 1880.97 | F12: mR/Sec | G12: 101.274 | H12: ms | I12: 1 | J12: Pulses | Q12: 2 | R12: mm-Al
A13: 57.1 | B13: kV | C13: 189.99 | D13: mR | E13: 1891.05 | F13: mR/Sec | G13: 101.35 | H13: ms | I13: 1 | J13: Pulses | Q13: 2.2 | R13: mm-Al
A14: 68.1 | B14: kV | C14: 187.56 | D14: mR | E14: 1868.85 | F14: mR/Sec | G14: 100.85 | H14: ms | I14: 1 | J14: Pulses | Q14: 2.7 | R14: mm-Al
A15: 78.7 | B15: kV | C15: 189.99 | D15: mR | E15: 1885.49 | F15: mR/Sec | G15: 101.25 | H15: ms | I15: 1 | J15: Pulses | Q15: 3 | R15: mm-Al
A16: 89.7 | B16: kV | C16: 189.07 | D16: mR | E16: 1880.97 | F16: mR/Sec | G16: 101.1 | H16: ms | I16: 1 | J16: Pulses | Q16: 3.4 | R16: mm-Al
A17: 99.1 | B17: kV | C17: 189.99 | D17: mR | E17: 1891.05 | F17: mR/Sec | G17: 100.659 | H17: ms | I17: 1 | J17: Pulses | Q17: 3.7 | R17: mm-Al
A18: 109.8 | B18: kV | C18: 187.56 | D18: mR | E18: 1868.85 | F18: mR/Sec | G18: 101.683 | H18: ms | I18: 1 | J18: Pulses | Q18: 4.1 | R18: mm-Al
A19: 119.9 | B19: kV | C19: 189.99 | D19: mR | E19: 1885.49 | F19: mR/Sec | G19: 101.581 | H19: ms | I19: 1 | J19: Pulses | Q19: 4.5 | R19: mm-Al
A20: 119.8 | B20: kV | C20: 189.07 | D20: mR | E20: 1880.97 | F20: mR/Sec | G20: 101.581 | H20: ms | I20: 1 | J20: Pulses | Q20: 2 | R20: mm-Al
A21: 119.9 | B21: kV | C21: 187.56 | D21: mR | E21: 1891.05 | F21: mR/Sec | G21: 100.85 | H21: ms | I21: 1 | J21: Pulses | Q21: 2.2 | R21: mm-Al
A23: 80 | B23: kV | C23: 189.07 | D23: mR | E23: 1880.97 | F23: mR/Sec | G23: 100 | H23: ms | I23: 1 | J23: Pulses | Q23: 2 | R23: mm-Al
A24: 80 | B24: kV | C24: 189.99 | D24: mR | E24: 1891.05 | F24: mR/Sec | G24: 100 | H24: ms | I24: 1 | J24: Pulses | Q24: 2.2 | R24: mm-Al
A25: 80 | B25: kV | C25: 187.56 | D25: mR | E25: 1868.85 | F25: mR/Sec | G25: 100 | H25: ms | I25: 1 | J25: Pulses | Q25: 2.7 | R25: mm-Al
A26: 80 | B26: kV | C26: 189.99 | D26: mR | E26: 1885.49 | F26: mR/Sec | G26: 100 | H26: ms | I26: 1 | J26: Pulses | Q26: 3 | R26: mm-Al
A27: 80 | B27: kV | C27: 189.07 | D27: mR | E27: 1880.97 | F27: mR/Sec | G27: 100 | H27: ms | I27: 1 | J27: Pulses | Q27: 3.4 | R27: mm-Al
A28: 80 | B28: kV | C28: 189.99 | D28: mR | E28: 1891.05 | F28: mR/Sec | G28: 100 | H28: ms | I28: 1 | J28: Pulses | Q28: 3.7 | R28: mm-Al
A29: 80 | B29: kV | C29: 187.56 | D29: mR | E29: 1868.85 | F29: mR/Sec | G29: 101 | H29: ms | I29: 1 | J29: Pulses | Q29: 4.1 | R29: mm-Al
A30: 80 | B30: kV | C30: 189.99 | D30: mR | E30: 1885.49 | F30: mR/Sec | G30: 100 | H30: ms | I30: 1 | J30: Pulses | Q30: 4.5 | R30: mm-Al
A31: 80 | B31: kV | C31: 189.07 | D31: mR | E31: 1880.97 | F31: mR/Sec | G31: 100 | H31: ms | I31: 1 | J31: Pulses | Q31: 2 | R31: mm-Al
A32: 80 | B32: kV | C32: 187.56 | D32: mR | E32: 1891.05 | F32: mR/Sec | G32: 100 | H32: ms | I32: 1 | J32: Pulses | Q32: 2.2 | R32: mm-Al
A33: 80 | B33: kV | C33: 189.07 | D33: mR | E33: 1880.97 | F33: mR/Sec | G33: 100 | H33: ms | I33: 1 | J33: Pulses | Q33: 2.7 | R33: mm-Al
A34: 80 | B34: kV | C34: 187.56 | D34: mR | E34: 1891.05 | F34: mR/Sec | G34: 100 | H34: ms | I34: 1 | J34: Pulses | Q34: 3 | R34: mm-Al

Sheet Data
D1: Reproducibility
C2: Exp. | D2: kV | F2: Dose | H2: Dose-Rate | J2: Time | L2: Pulse Count | T2: HVL | Y2: Serial # | Z2: Date | AA2: Time
A3: kV | B3: =Report!C11 -> 80 | C3: 1 | D3: 79.3 | E3: kV | F3: 189.07 | G3: mR | H3: 1880.97 | I3: mR/Sec | J3: 0.1 | K3: ms | L3: 1 | M3: Pulses | T3: 2 | U3: mm-Al | X3: 1 | Y3: 43-0001 | Z3: 2017-04-27 | AA3: 14:40:20.089 | AL3: 3.694 | AM3: mm | AN3: mR | AQ3: 1 | AT3: 0.7274 | AU3: s | CD3: 116.6 | CE3: kV | CG3: 43-0001
A4: mAs | B4: =Report!C12 -> 20 | C4: 2 | D4: 78 | E4: kV | F4: 189.99 | G4: mR | H4: 1891.05 | I4: mR/Sec | J4: 0.1 | K4: ms | L4: 1 | M4: Pulses | T4: 2.2 | U4: mm-Al | X4: 2 | Y4: 43-0001 | Z4: 2017-04-27 | AA4: 14:40:23.977 | AL4: 3.693 | AM4: mm
A5: Focus | B5: =Report!C13 -> Small | C5: 3 | D5: 77.2 | E5: kV | F5: 187.56 | G5: mR | H5: 1868.85 | I5: mR/Sec | J5: 0.1 | K5: ms | L5: 1 | M5: Pulses | T5: 2.7 | U5: mm-Al | X5: 3 | Y5: 43-0001 | Z5: 2017-04-27 | AA5: 14:40:27.656 | AL5: 3.693 | AM5: mm
A6: SDD | B6: =Report!C14 -> 12 | C6: 4 | D6: 77.8 | E6: kV | F6: 189.99 | G6: mR | H6: 1885.49 | I6: mR/Sec | J6: 0.1 | K6: ms | L6: 1 | M6: Pulses | T6: 3 | U6: mm-Al
C7: 5 | D7: 78.5 | E7: kV | F7: 189.07 | G7: mR | H7: 1880.97 | I7: mR/Sec | J7: 0.1 | K7: ms | L7: 1 | M7: Pulses | T7: 3.4 | U7: mm-Al
C8: 6 | D8: 79.3 | E8: kV | F8: 189.99 | G8: mR | H8: 1891.05 | I8: mR/Sec | J8: 0.1 | K8: ms | L8: 1 | M8: Pulses | T8: 3.7 | U8: mm-Al
C9: 7 | D9: 79.6 | E9: kV | F9: 187.56 | G9: mR | H9: 1868.85 | I9: mR/Sec | J9: 0.1 | K9: ms | L9: 1 | M9: Pulses | T9: 4.1 | U9: mm-Al
C10: 8 | D10: 79.1 | E10: kV | F10: 189.99 | G10: mR | H10: 1885.49 | I10: mR/Sec | J10: 0.1 | K10: ms | L10: 1 | M10: Pulses | T10: 4.5 | U10: mm-Al
C11: 9 | D11: 79.5 | E11: kV | F11: 189.07 | G11: mR | H11: 1880.97 | I11: mR/Sec | J11: 0.1 | K11: ms | L11: 1 | M11: Pulses | T11: 2 | U11: mm-Al
C12: 10 | D12: 80.5 | E12: kV | F12: 187.56 | G12: mR | H12: 1891.05 | I12: mR/Sec | J12: 0.1 | K12: ms | L12: 1 | M12: Pulses | T12: 2.2 | U12: mm-Al
A13: kV | B13: =Report!B46 -> mA | C13: Exp. | D13: Accuracy
A14: =Report!A47 -> 50 | B14: =Report!B47 -> 100 | C14: 1 | D14: 52 | E14: kV | F14: 189.07 | G14: mR | H14: 1880.97 | I14: mR/Sec | J14: 0.1 | K14: ms | L14: 1 | M14: Pulses | T14: 2 | U14: mm-Al | X14: 4 | Y14: 43-0001 | Z14: 2017-04-27 | AA14: 14:42:01.657 | AL14: 3.694 | AM14: mm
A15: =Report!A48 -> 60 | B15: =Report!B48 -> 100 | C15: 2 | D15: 57.1 | E15: kV | F15: 189.99 | G15: mR | H15: 1891.05 | I15: mR/Sec | J15: 0.1 | K15: ms | L15: 1 | M15: Pulses | T15: 2.2 | U15: mm-Al | X15: 5 | Y15: 43-0001 | Z15: 2017-04-27 | AA15: 14:42:05.341 | AL15: 3.694 | AM15: mm
A16: =Report!A49 -> 70 | B16: =Report!B49 -> 250 | C16: 3 | D16: 68.1 | E16: kV | F16: 187.56 | G16: mR | H16: 1868.85 | I16: mR/Sec | J16: 0.1 | K16: ms | L16: 1 | M16: Pulses | T16: 2.7 | U16: mm-Al
A17: =Report!A50 -> 80 | B17: =Report!B50 -> 250 | C17: 4 | D17: 78.7 | E17: kV | F17: 189.99 | G17: mR | H17: 1885.49 | I17: mR/Sec | J17: 0.1 | K17: ms | L17: 1 | M17: Pulses | T17: 3 | U17: mm-Al
A18: =Report!A51 -> 90 | B18: =Report!B51 -> 250 | C18: 5 | D18: 89.7 | E18: kV | F18: 189.07 | G18: mR | H18: 1880.97 | I18: mR/Sec | J18: 0.1 | K18: ms | L18: 1 | M18: Pulses | T18: 3.4 | U18: mm-Al
A19: =Report!A52 -> 100 | B19: =Report!B52 -> 250 | C19: 6 | D19: 99.1 | E19: kV | F19: 189.99 | G19: mR | H19: 1891.05 | I19: mR/Sec | J19: 0.1 | K19: ms | L19: 1 | M19: Pulses | T19: 3.7 | U19: mm-Al
A20: =Report!A53 -> 110 | B20: =Report!B53 -> 250 | C20: 7 | D20: 109.8 | E20: kV | F20: 187.56 | G20: mR | H20: 1868.85 | I20: mR/Sec | J20: 0.1 | K20: ms | L20: 1 | M20: Pulses | T20: 4.1 | U20: mm-Al
A21: =Report!A54 -> 120 | B21: =Report!B54 -> 250 | C21: 8 | D21: 119.9 | E21: kV | F21: 189.99 | G21: mR | H21: 1885.49 | I21: mR/Sec | J21: 0.1 | K21: ms | L21: 1 | M21: Pulses | T21: 4.5 | U21: mm-Al
A22: =Report!A55 -> 120 | B22: =Report!B55 -> 250 | C22: 9 | D22: 119.8 | E22: kV | F22: 189.07 | G22: mR | H22: 1880.97 | I22: mR/Sec | J22: 0.1 | K22: ms | L22: 1 | M22: Pulses | T22: 2 | U22: mm-Al
A23: =Report!A56 -> 120 | B23: =Report!B56 -> 250 | C23: 10 | D23: 119.9 | E23: kV | F23: 187.56 | G23: mR | H23: 1891.05 | I23: mR/Sec | J23: 0.1 | K23: ms | L23: 1 | M23: Pulses | T23: 2.2 | U23: mm-Al
A24: mAs | B24: Focus | C24: Exp. | D24: Linearity
A25: =Report!B85 -> 25 | B25: =Report!C85 -> Small | C25: 1 | D25: 79.3 | E25: kV | F25: 275.92 | G25: mR | H25: 137.93 | I25: mR/Sec | J25: 2.0037 | K25: ms | L25: 1 | M25: Pulses | T25: 2 | U25: mm-Al | X25: 1 | Y25: 43-0001 | Z25: 2017-04-27 | AA25: 13:53:47.701
A26: =Report!B86 -> 50 | B26: =Report!C86 -> Small | C26: 2 | D26: 78 | E26: kV | F26: 277.95 | G26: mR | H26: 277.01 | I26: mR/Sec | J26: 1 | K26: ms | L26: 1 | M26: Pulses | T26: 2.2 | U26: mm-Al
A27: =Report!B87 -> 100 | B27: =Report!C87 -> Small | C27: 3 | D27: 77.2 | E27: kV | F27: 276.22 | G27: mR | H27: 552.19 | I27: mR/Sec | J27: 0.5 | K27: ms | L27: 1 | M27: Pulses | T27: 2.7 | U27: mm-Al
A28: =Report!B88 -> 160 | B28: =Report!C88 -> Small | C28: 4 | D28: 77.8 | E28: kV | F28: 225.36 | G28: mR | H28: 899.75 | I28: mR/Sec | J28: 0.25 | K28: ms | L28: 1 | M28: Pulses | T28: 3 | U28: mm-Al
A29: =Report!B89 -> 250 | B29: =Report!C89 -> Large | C29: 5 | D29: 78.5 | E29: kV | F29: 142.6 | G29: mR | H29: 1431.98 | I29: mR/Sec | J29: 0.1 | K29: ms | L29: 1 | M29: Pulses | T29: 3.4 | U29: mm-Al
A30: =Report!B90 -> 320 | B30: =Report!C90 -> Large | C30: 6 | D30: 79.3 | E30: kV | F30: 189.07 | G30: mR | H30: 1880.97 | I30: mR/Sec | J30: 0.1 | K30: ms | L30: 1 | M30: Pulses | T30: 3.7 | U30: mm-Al
A31: =Report!B91 -> 320 | B31: =Report!C91 -> Large | C31: 7 | D31: 79.6 | E31: kV | F31: 189.99 | G31: mR | H31: 1891.05 | I31: mR/Sec | J31: 0.1 | K31: ms | L31: 1 | M31: Pulses | T31: 4.1 | U31: mm-Al
A32: =Report!B92 -> 320 | B32: =Report!C92 -> Large | C32: 8 | D32: 79.1 | E32: kV | F32: 187.56 | G32: mR | H32: 1868.85 | I32: mR/Sec | J32: 0.1 | K32: ms | L32: 1 | M32: Pulses | T32: 4.5 | U32: mm-Al
A33: =Report!B93 -> 320 | B33: =Report!C93 -> Large | C33: 9 | D33: 79.3 | E33: kV | F33: 189.7 | G33: mR | H33: 1885.49 | I33: mR/Sec | J33: 0.1 | K33: ms | L33: 1 | M33: Pulses | T33: 2 | U33: mm-Al
A126: 1 | B126: 1 | D126: 1 | E126: 1 | F126: 1 | G126: 1 | H126: 1 | I126: 1 | J126: 1 | K126: 1 | L126: 1 | M126: 1 | N126: 1 | O126: 1 | P126: 1 | Q126: 1 | R126: 1 | S126: 1 | T126: 1 | U126: 1 | V126: 1 | W126: 1 | X126: 1 | Y126: 1 | Z126: 1 | AA126: 1 | AB126: 1
A127: 1 | B127: 1 | D127: 1 | E127: 1 | F127: 1 | G127: 1 | H127: 1 | I127: 1 | J127: 1 | K127: 1 | L127: 1 | M127: 1 | N127: 1 | O127: 1 | P127: 1 | Q127: 1 | R127: 1 | S127: 1 | T127: 1 | U127: 1 | V127: 1 | W127: 1 | X127: 1 | Y127: 1 | Z127: 1 | AA127: 1 | AB127: 1
A128: 1 | B128: 1 | D128: 1 | E128: 1 | F128: 1 | G128: 1 | H128: 1 | I128: 1 | J128: 1 | K128: 1 | L128: 1 | M128: 1 | N128: 1 | O128: 1 | P128: 1 | Q128: 1 | R128: 1 | S128: 1 | T128: 1 | U128: 1 | V128: 1 | W128: 1 | X128: 1 | Y128: 1 | Z128: 1 | AA128: 1 | AB128: 1
A129: 1 | B129: 1 | D129: 1 | E129: 1 | F129: 1 | G129: 1 | H129: 1 | I129: 1 | J129: 1 | K129: 1 | L129: 1 | M129: 1 | N129: 1 | O129: 1 | P129: 1 | Q129: 1 | R129: 1 | S129: 1 | T129: 1 | U129: 1 | V129: 1 | W129: 1 | X129: 1 | Y129: 1 | Z129: 1 | AA129: 1 | AB129: 1
A130: 1 | B130: 1 | D130: 1 | E130: 1 | F130: 1 | G130: 1 | H130: 1 | I130: 1 | J130: 1 | K130: 1 | L130: 1 | M130: 1 | N130: 1 | O130: 1 | P130: 1 | Q130: 1 | R130: 1 | S130: 1 | T130: 1 | U130: 1 | V130: 1 | W130: 1 | X130: 1 | Y130: 1 | Z130: 1 | AA130: 1 | AB130: 1
A131: 1 | B131: 1 | D131: 1 | E131: 1 | F131: 1 | G131: 1 | H131: 1 | I131: 1 | J131: 1 | K131: 1 | L131: 1 | M131: 1 | N131: 1 | O131: 1 | P131: 1 | Q131: 1 | R131: 1 | S131: 1 | T131: 1 | U131: 1 | V131: 1 | W131: 1 | X131: 1 | Y131: 1 | Z131: 1 | AA131: 1 | AB131: 1
A132: 1 | B132: 1 | D132: 1 | E132: 1 | F132: 1 | G132: 1 | H132: 1 | I132: 1 | J132: 1 | K132: 1 | L132: 1 | M132: 1 | N132: 1 | O132: 1 | P132: 1 | Q132: 1 | R132: 1 | S132: 1 | T132: 1 | U132: 1 | V132: 1 | W132: 1 | X132: 1 | Y132: 1 | Z132: 1 | AA132: 1 | AB132: 1
A133: 1 | B133: 1 | D133: 1 | E133: 1 | F133: 1 | G133: 1 | H133: 1 | I133: 1 | J133: 1 | K133: 1 | L133: 1 | M133: 1 | N133: 1 | O133: 1 | P133: 1 | Q133: 1 | R133: 1 | S133: 1 | T133: 1 | U133: 1 | V133: 1 | W133: 1 | X133: 1 | Y133: 1 | Z133: 1 | AA133: 1 | AB133: 1
A134: 1 | B134: 1 | D134: 1 | E134: 1 | F134: 1 | G134: 1 | H134: 1 | I134: 1 | J134: 1 | K134: 1 | L134: 1 | M134: 1 | N134: 1 | O134: 1 | P134: 1 | Q134: 1 | R134: 1 | S134: 1 | T134: 1 | U134: 1 | V134: 1 | W134: 1 | X134: 1 | Y134: 1 | Z134: 1 | AA134: 1 | AB134: 1
A135: 1 | B135: 1 | D135: 1 | E135: 1 | F135: 1 | G135: 1 | H135: 1 | I135: 1 | J135: 1 | K135: 1 | L135: 1 | M135: 1 | N135: 1 | O135: 1 | P135: 1 | Q135: 1 | R135: 1 | S135: 1 | T135: 1 | U135: 1 | V135: 1 | W135: 1 | X135: 1 | Y135: 1 | Z135: 1 | AA135: 1 | AB135: 1
A136: 1 | B136: 1 | D136: 1 | E136: 1 | F136: 1 | G136: 1 | H136: 1 | I136: 1 | J136: 1 | K136: 1 | L136: 1 | M136: 1 | N136: 1 | O136: 1 | P136: 1 | Q136: 1 | R136: 1 | S136: 1 | T136: 1 | U136: 1 | V136: 1 | W136: 1 | X136: 1 | Y136: 1 | Z136: 1 | AA136: 1 | AB136: 1
A137: 1 | B137: 1 | D137: 1 | E137: 1 | F137: 1 | G137: 1 | H137: 1 | I137: 1 | J137: 1 | K137: 1 | L137: 1 | M137: 1 | N137: 1 | O137: 1 | P137: 1 | Q137: 1 | R137: 1 | S137: 1 | T137: 1 | U137: 1 | V137: 1 | W137: 1 | X137: 1 | Y137: 1 | Z137: 1 | AA137: 1 | AB137: 1
A138: 1 | B138: 1 | D138: 1 | E138: 1 | F138: 1 | G138: 1 | H138: 1 | I138: 1 | J138: 1 | K138: 1 | L138: 1 | M138: 1 | N138: 1 | O138: 1 | P138: 1 | Q138: 1 | R138: 1 | S138: 1 | T138: 1 | U138: 1 | V138: 1 | W138: 1 | X138: 1 | Y138: 1 | Z138: 1 | AA138: 1 | AB138: 1
A139: 1 | B139: 1 | D139: 1 | E139: 1 | F139: 1 | G139: 1 | H139: 1 | I139: 1 | J139: 1 | K139: 1 | L139: 1 | M139: 1 | N139: 1 | O139: 1 | P139: 1 | Q139: 1 | R139: 1 | S139: 1 | T139: 1 | U139: 1 | V139: 1 | W139: 1 | X139: 1 | Y139: 1 | Z139: 1 | AA139: 1 | AB139: 1
A140: 1 | B140: 1 | D140: 1 | E140: 1 | F140: 1 | G140: 1 | H140: 1 | I140: 1 | J140: 1 | K140: 1 | L140: 1 | M140: 1 | N140: 1 | O140: 1 | P140: 1 | Q140: 1 | R140: 1 | S140: 1 | T140: 1 | U140: 1 | V140: 1 | W140: 1 | X140: 1 | Y140: 1 | Z140: 1 | AA140: 1 | AB140: 1
A141: 1 | B141: 1 | D141: 1 | E141: 1 | F141: 1 | G141: 1 | H141: 1 | I141: 1 | J141: 1 | K141: 1 | L141: 1 | M141: 1 | N141: 1 | O141: 1 | P141: 1 | Q141: 1 | R141: 1 | S141: 1 | T141: 1 | U141: 1 | V141: 1 | W141: 1 | X141: 1 | Y141: 1 | Z141: 1 | AA141: 1 | AB141: 1
A142: 1 | B142: 1 | D142: 1 | E142: 1 | F142: 1 | G142: 1 | H142: 1 | I142: 1 | J142: 1 | K142: 1 | L142: 1 | M142: 1 | N142: 1 | O142: 1 | P142: 1 | Q142: 1 | R142: 1 | S142: 1 | T142: 1 | U142: 1 | V142: 1 | W142: 1 | X142: 1 | Y142: 1 | Z142: 1 | AA142: 1 | AB142: 1
A143: 1 | B143: 1 | D143: 1 | E143: 1 | F143: 1 | G143: 1 | H143: 1 | I143: 1 | J143: 1 | K143: 1 | L143: 1 | M143: 1 | N143: 1 | O143: 1 | P143: 1 | Q143: 1 | R143: 1 | S143: 1 | T143: 1 | U143: 1 | V143: 1 | W143: 1 | X143: 1 | Y143: 1 | Z143: 1 | AA143: 1 | AB143: 1
A144: 1 | B144: 1 | D144: 1 | E144: 1 | F144: 1 | G144: 1 | H144: 1 | I144: 1 | J144: 1 | K144: 1 | L144: 1 | M144: 1 | N144: 1 | O144: 1 | P144: 1 | Q144: 1 | R144: 1 | S144: 1 | T144: 1 | U144: 1 | V144: 1 | W144: 1 | X144: 1 | Y144: 1 | Z144: 1 | AA144: 1 | AB144: 1
